[Event "Titled Tuesday Blitz October 04 Late 2022"]
[White "Paravyan, David"]
[Black "Guzman, Christopher"]
[WhiteFideId "4194985"]
[BlackFideId "6405096"]
[WhiteElo "2555"]
[BlackElo "2272"]
[Result "0-1"]
[Round "02"]
[TimeControl "180+1"]
[Date "2022.10.04"]
[WhiteClock "0:00:01"]
[BlackClock "0:00:30"]

1. e4 {[%clk 0:03:00]}  c6 {[%clk 0:03:00]} 2. d4 {[%clk 0:03:00]}  d5 {[%clk 0:03:00]} 3. e5 {[%clk 0:03:01]}  Bf5 {[%clk 0:03:00]} 4. h4 {[%clk 0:03:01]}  h5 {[%clk 0:03:00]} 5. Bd3 {[%clk 0:03:02]}  Bxd3 {[%clk 0:03:00]} 6. Qxd3 {[%clk 0:03:03]}  Qa5+ {[%clk 0:03:00]} 7. Bd2 {[%clk 0:03:01]}  Qa6 {[%clk 0:03:00]} 8. e6 {[%clk 0:03:02]}  Qxd3 {[%clk 0:02:58]} 9. exf7+ {[%clk 0:03:03]}  Kxf7 {[%clk 0:02:59]} 10. cxd3 {[%clk 0:03:04]}  Nf6 {[%clk 0:02:54]} 11. Nf3 {[%clk 0:02:57]}  Nbd7 {[%clk 0:02:54]} 12. Ng5+ {[%clk 0:02:55]}  Kg6 {[%clk 0:02:51]} 13. Nc3 {[%clk 0:02:55]}  e5 {[%clk 0:02:48]} 14. Ne2 {[%clk 0:02:34]}  Bd6 {[%clk 0:02:42]} 15. f4 {[%clk 0:01:56]}  exd4 {[%clk 0:02:30]} 16. f5+ {[%clk 0:00:51]}  Kxf5 {[%clk 0:02:28]} 17. O-O+ {[%clk 0:00:52]}  Kg6 {[%clk 0:02:12]} 18. Bf4 {[%clk 0:00:52]}  Bc5 {[%clk 0:02:00]} 19. Bc7 {[%clk 0:00:46]}  Rhe8 {[%clk 0:01:51]} 20. Nf4+ {[%clk 0:00:45]}  Kh6 {[%clk 0:01:51]} 21. Nfe6 {[%clk 0:00:32]}  Bb6 {[%clk 0:01:51]} 22. Bxb6 {[%clk 0:00:21]}  axb6 {[%clk 0:01:50]} 23. Nc7 {[%clk 0:00:21]}  Nc5 {[%clk 0:01:47]} 24. Rf3 {[%clk 0:00:17]}  Kg6 {[%clk 0:01:36]} 25. Raf1 {[%clk 0:00:14]}  Rec8 {[%clk 0:01:26]} 26. Nxa8 {[%clk 0:00:12]}  Rxa8 {[%clk 0:01:26]} 27. b4 {[%clk 0:00:11]}  Ncd7 {[%clk 0:01:25]} 28. Ne6 {[%clk 0:00:11]}  Kh7 {[%clk 0:01:21]} 29. Nxd4 {[%clk 0:00:07]}  Ra4 {[%clk 0:01:21]} 30. Rf4 {[%clk 0:00:05]}  Rxa2 {[%clk 0:01:09]} 31. Ne6 {[%clk 0:00:04]}  Rd2 {[%clk 0:01:06]} 32. R4f3 {[%clk 0:00:04]}  Ne5 {[%clk 0:01:03]} 33. Re3 {[%clk 0:00:04]}  Nfg4 {[%clk 0:00:56]} 34. Ng5+ {[%clk 0:00:04]}  Kg6 {[%clk 0:00:55]} 35. Ree1 {[%clk 0:00:04]}  Rxd3 {[%clk 0:00:54]} 36. Ne6 {[%clk 0:00:04]}  Rb3 {[%clk 0:00:50]} 37. Nf8+ {[%clk 0:00:03]}  Kh6 {[%clk 0:00:48]} 38. Rf5 {[%clk 0:00:03]}  Nd3 {[%clk 0:00:39]} 39. Re6+ {[%clk 0:00:03]}  Nf6 {[%clk 0:00:39]} 40. Rg5 {[%clk 0:00:02]}  Nf4 {[%clk 0:00:37]} 41. Re7 {[%clk 0:00:02]}  Ng4 {[%clk 0:00:30]} 42. Rxg4 {[%clk 0:00:01]}  hxg4 {[%clk 0:00:30]} 0-1


[Site "https://www.chess.com"]

[Event "Titled Tuesday Blitz October 04 Late 2022"]
[White "Sargsyan, Anna M."]
[Black "Svane, Rasmus"]
[WhiteFideId "13308130"]
[BlackFideId "4657101"]
[WhiteElo "2284"]
[BlackElo "2674"]
[Result "0-1"]
[Round "02"]
[TimeControl "180+1"]
[Date "2022.10.04"]
[WhiteClock "0:00:11"]
[BlackClock "0:00:50"]

1. d4 {[%clk 0:02:53]}  d5 {[%clk 0:03:00]} 2. c4 {[%clk 0:02:50]}  e6 {[%clk 0:03:00]} 3. Nf3 {[%clk 0:02:51]}  a6 {[%clk 0:03:00]} 4. cxd5 {[%clk 0:02:49]}  exd5 {[%clk 0:03:01]} 5. Qb3 {[%clk 0:02:49]}  Nf6 {[%clk 0:03:02]} 6. Bg5 {[%clk 0:02:48]}  Be7 {[%clk 0:02:44]} 7. Nc3 {[%clk 0:02:46]}  c6 {[%clk 0:02:44]} 8. e3 {[%clk 0:02:46]}  O-O {[%clk 0:02:43]} 9. Bd3 {[%clk 0:02:46]}  Re8 {[%clk 0:02:44]} 10. O-O {[%clk 0:02:45]}  Nbd7 {[%clk 0:02:42]} 11. Rac1 {[%clk 0:02:41]}  Nf8 {[%clk 0:02:42]} 12. Na4 {[%clk 0:02:37]}  Ne6 {[%clk 0:02:39]} 13. Bh4 {[%clk 0:02:33]}  Nh5 {[%clk 0:02:30]} 14. Bxe7 {[%clk 0:02:28]}  Qxe7 {[%clk 0:02:30]} 15. Nb6 {[%clk 0:02:26]}  Rb8 {[%clk 0:02:30]} 16. Ne5 {[%clk 0:02:21]}  Nf6 {[%clk 0:02:18]} 17. a4 {[%clk 0:01:48]}  g6 {[%clk 0:02:17]} 18. a5 {[%clk 0:01:47]}  Ng7 {[%clk 0:02:17]} 19. Na4 {[%clk 0:01:43]}  Bf5 {[%clk 0:02:16]} 20. Nc5 {[%clk 0:01:37]}  Bxd3 {[%clk 0:02:16]} 21. Qxd3 {[%clk 0:01:38]}  Nf5 {[%clk 0:02:14]} 22. Qe2 {[%clk 0:00:53]}  Nd6 {[%clk 0:02:12]} 23. Qf3 {[%clk 0:00:52]}  Nfe4 {[%clk 0:02:08]} 24. Nxa6 {[%clk 0:00:42]}  Ra8 {[%clk 0:01:52]} 25. Nc5 {[%clk 0:00:34]}  Nd2 {[%clk 0:01:53]} 26. Qf4 {[%clk 0:00:32]}  Nxf1 {[%clk 0:01:53]} 27. Rxf1 {[%clk 0:00:30]}  Rxa5 {[%clk 0:01:53]} 28. Ng4 {[%clk 0:00:31]}  Rea8 {[%clk 0:01:43]} 29. Nd3 {[%clk 0:00:26]}  Ra1 {[%clk 0:01:42]} 30. Nde5 {[%clk 0:00:26]}  h5 {[%clk 0:01:29]} 31. Nf6+ {[%clk 0:00:17]}  Kg7 {[%clk 0:01:29]} 32. Ned7 {[%clk 0:00:16]}  Ne4 {[%clk 0:01:24]} 33. Nxe4 {[%clk 0:00:14]}  Qxe4 {[%clk 0:01:23]} 34. Qf6+ {[%clk 0:00:13]}  Kg8 {[%clk 0:01:23]} 35. Ne5 {[%clk 0:00:10]}  Rxf1+ {[%clk 0:00:53]} 36. Kxf1 {[%clk 0:00:11]}  Ra1+ {[%clk 0:00:54]} 37. Ke2 {[%clk 0:00:11]}  Qc2+ {[%clk 0:00:55]} 38. Kf3 {[%clk 0:00:12]}  Qf5+ {[%clk 0:00:55]} 39. Qxf5 {[%clk 0:00:12]}  gxf5 {[%clk 0:00:56]} 40. Nd7 {[%clk 0:00:12]}  Rb1 {[%clk 0:00:55]} 41. Kf4 {[%clk 0:00:11]}  Rxb2 {[%clk 0:00:54]} 42. f3 {[%clk 0:00:12]}  Rxg2 {[%clk 0:00:54]} 43. Nf6+ {[%clk 0:00:10]}  Kf8 {[%clk 0:00:53]} 44. Nxh5 {[%clk 0:00:11]}  b5 {[%clk 0:00:50]} 0-1


[Site "https://www.chess.com"]

[Event "Titled Tuesday Blitz October 04 Late 2022"]
[White "Zierk, Steven"]
[Black "Mihajlov, Sebastian"]
[WhiteFideId "2034255"]
[BlackFideId "1512110"]
[WhiteElo "2494"]
[BlackElo "2464"]
[Result "1-0"]
[Round "02"]
[TimeControl "180+1"]
[Date "2022.10.04"]
[WhiteClock "0:00:34"]
[BlackClock "0:00:10"]

1. d4 {[%clk 0:03:00]}  Nf6 {[%clk 0:02:49]} 2. c4 {[%clk 0:03:00]}  c6 {[%clk 0:02:50]} 3. Nc3 {[%clk 0:02:59]}  d5 {[%clk 0:02:50]} 4. cxd5 {[%clk 0:02:59]}  cxd5 {[%clk 0:02:51]} 5. Bf4 {[%clk 0:02:59]}  Nc6 {[%clk 0:02:52]} 6. e3 {[%clk 0:03:00]}  Bf5 {[%clk 0:02:52]} 7. Qb3 {[%clk 0:02:59]}  Na5 {[%clk 0:02:52]} 8. Qa4+ {[%clk 0:02:59]}  Bd7 {[%clk 0:02:52]} 9. Qc2 {[%clk 0:02:59]}  e6 {[%clk 0:02:53]} 10. Bd3 {[%clk 0:02:59]}  Nh5 {[%clk 0:02:39]} 11. Be5 {[%clk 0:02:57]}  f6 {[%clk 0:02:39]} 12. g4 {[%clk 0:02:09]}  fxe5 {[%clk 0:02:35]} 13. dxe5 {[%clk 0:02:09]}  Qg5 {[%clk 0:02:22]} 14. gxh5 {[%clk 0:01:45]}  Qg2 {[%clk 0:02:21]} 15. O-O-O {[%clk 0:01:45]}  Qxh1 {[%clk 0:02:21]} 16. f4 {[%clk 0:01:45]}  Rc8 {[%clk 0:01:52]} 17. Kb1 {[%clk 0:01:26]}  Bb4 {[%clk 0:01:31]} 18. Qe2 {[%clk 0:01:21]}  Bxc3 {[%clk 0:01:31]} 19. bxc3 {[%clk 0:01:19]}  Ba4 {[%clk 0:00:49]} 20. Rc1 {[%clk 0:01:08]}  Nc4 {[%clk 0:00:44]} 21. Bxc4 {[%clk 0:01:03]}  Rxc4 {[%clk 0:00:38]} 22. Nf3 {[%clk 0:01:02]}  Qxc1+ {[%clk 0:00:38]} 23. Kxc1 {[%clk 0:01:03]}  Rxc3+ {[%clk 0:00:38]} 24. Kb1 {[%clk 0:01:03]}  O-O {[%clk 0:00:38]} 25. Nd4 {[%clk 0:01:03]}  Rfc8 {[%clk 0:00:35]} 26. Qg4 {[%clk 0:00:58]}  Bd7 {[%clk 0:00:25]} 27. h6 {[%clk 0:00:58]}  g6 {[%clk 0:00:25]} 28. Qh4 {[%clk 0:00:52]}  Rd3 {[%clk 0:00:17]} 29. Nb3 {[%clk 0:00:34]}  Rd1+ {[%clk 0:00:10]} 30. Kb2 {[%clk 0:00:34]} 1-0


[Site "https://www.chess.com"]

[Event "Titled Tuesday Blitz October 04 Late 2022"]
[White "Bartel, Mateusz"]
[Black "Al Hosani, Omran"]
[WhiteFideId "1112635"]
[BlackFideId "9308733"]
[WhiteElo "2530"]
[BlackElo "2167"]
[Result "1-0"]
[Round "03"]
[TimeControl "180+1"]
[Date "2022.10.04"]
[WhiteClock "0:00:15"]
[BlackClock "0:00:01"]

1. e4 {[%clk 0:03:00]}  e5 {[%clk 0:02:59]} 2. Nc3 {[%clk 0:02:57]}  Nf6 {[%clk 0:02:59]} 3. g3 {[%clk 0:02:58]}  d5 {[%clk 0:02:58]} 4. exd5 {[%clk 0:02:58]}  Nxd5 {[%clk 0:02:59]} 5. Bg2 {[%clk 0:02:59]}  Nb6 {[%clk 0:03:00]} 6. Nf3 {[%clk 0:02:57]}  Nc6 {[%clk 0:03:00]} 7. O-O {[%clk 0:02:56]}  Be7 {[%clk 0:03:00]} 8. Re1 {[%clk 0:02:56]}  f6 {[%clk 0:03:00]} 9. a4 {[%clk 0:02:43]}  a5 {[%clk 0:02:57]} 10. d4 {[%clk 0:02:41]}  exd4 {[%clk 0:02:52]} 11. Nb5 {[%clk 0:02:41]}  O-O {[%clk 0:02:52]} 12. Nfxd4 {[%clk 0:02:33]}  Nxd4 {[%clk 0:02:52]} 13. Qxd4 {[%clk 0:02:25]}  Qxd4 {[%clk 0:02:50]} 14. Nxd4 {[%clk 0:02:26]}  Bd8 {[%clk 0:02:48]} 15. b3 {[%clk 0:02:15]}  Kf7 {[%clk 0:02:41]} 16. Ba3 {[%clk 0:01:30]}  Re8 {[%clk 0:02:40]} 17. Rxe8 {[%clk 0:01:24]}  Kxe8 {[%clk 0:02:41]} 18. Re1+ {[%clk 0:01:24]}  Kf7 {[%clk 0:02:41]} 19. Nb5 {[%clk 0:01:24]}  Rb8 {[%clk 0:02:23]} 20. c4 {[%clk 0:01:23]}  Be6 {[%clk 0:02:06]} 21. Nd4 {[%clk 0:01:22]}  Bd7 {[%clk 0:01:41]} 22. c5 {[%clk 0:01:22]}  Nc8 {[%clk 0:01:41]} 23. c6 {[%clk 0:00:51]}  bxc6 {[%clk 0:01:39]} 24. Bxc6 {[%clk 0:00:49]}  Nb6 {[%clk 0:01:26]} 25. h4 {[%clk 0:00:44]}  g6 {[%clk 0:01:10]} 26. Bc5 {[%clk 0:00:41]}  Bc8 {[%clk 0:00:47]} 27. Be8+ {[%clk 0:00:25]}  Kg7 {[%clk 0:00:45]} 28. Nc6 {[%clk 0:00:26]}  Ra8 {[%clk 0:00:12]} 29. Nxd8 {[%clk 0:00:25]}  Bf5 {[%clk 0:00:13]} 30. Ne6+ {[%clk 0:00:22]}  Kg8 {[%clk 0:00:11]} 31. Nd4 {[%clk 0:00:21]}  Bg4 {[%clk 0:00:08]} 32. Nb5 {[%clk 0:00:17]}  Rc8 {[%clk 0:00:02]} 33. Bc6 {[%clk 0:00:16]}  Rd8 {[%clk 0:00:02]} 34. Nxc7 {[%clk 0:00:15]}  Nc8 {[%clk 0:00:02]} 35. Nd5 {[%clk 0:00:15]}  Kg7 {[%clk 0:00:02]} 36. Ne3 {[%clk 0:00:15]}  Ne7 {[%clk 0:00:01]} 1-0


[Site "https://www.chess.com"]

[Event "Titled Tuesday Blitz October 04 Late 2022"]
[White "Belous, Vladimir"]
[Black "Dimitrov, Atanas"]
[WhiteFideId "4174003"]
[BlackFideId "2901315"]
[WhiteElo "2534"]
[BlackElo "2633"]
[Result "1-0"]
[Round "03"]
[TimeControl "180+1"]
[Date "2022.10.04"]
[WhiteClock "0:00:47"]
[BlackClock "0:00:28"]

1. c4 {[%clk 0:03:00]}  e5 {[%clk 0:02:59]} 2. g3 {[%clk 0:03:00]}  g6 {[%clk 0:02:59]} 3. Bg2 {[%clk 0:03:00]}  Bg7 {[%clk 0:02:59]} 4. Nf3 {[%clk 0:03:00]}  Nc6 {[%clk 0:02:59]} 5. O-O {[%clk 0:03:01]}  Nge7 {[%clk 0:02:58]} 6. Nc3 {[%clk 0:03:01]}  O-O {[%clk 0:02:58]} 7. Rb1 {[%clk 0:03:02]}  a5 {[%clk 0:02:58]} 8. a3 {[%clk 0:03:02]}  d6 {[%clk 0:02:55]} 9. b4 {[%clk 0:03:00]}  axb4 {[%clk 0:02:56]} 10. axb4 {[%clk 0:03:01]}  h6 {[%clk 0:02:54]} 11. d3 {[%clk 0:02:47]}  Be6 {[%clk 0:02:49]} 12. b5 {[%clk 0:02:43]}  Nb8 {[%clk 0:02:45]} 13. Nd2 {[%clk 0:02:21]}  Qc8 {[%clk 0:02:42]} 14. Nde4 {[%clk 0:02:11]}  Nd7 {[%clk 0:02:38]} 15. Bb2 {[%clk 0:01:55]}  Kh7 {[%clk 0:02:30]} 16. Ra1 {[%clk 0:01:49]}  f5 {[%clk 0:02:19]} 17. Nd2 {[%clk 0:01:45]}  Nc5 {[%clk 0:02:13]} 18. Qc2 {[%clk 0:01:43]}  Qd7 {[%clk 0:02:00]} 19. Nb3 {[%clk 0:01:40]}  Nxb3 {[%clk 0:01:56]} 20. Qxb3 {[%clk 0:01:41]}  c6 {[%clk 0:01:56]} 21. Na4 {[%clk 0:01:35]}  Qc7 {[%clk 0:01:43]} 22. Nc3 {[%clk 0:01:34]}  g5 {[%clk 0:01:35]} 23. Rfb1 {[%clk 0:01:30]}  g4 {[%clk 0:01:18]} 24. Rxa8 {[%clk 0:01:26]}  Rxa8 {[%clk 0:01:17]} 25. bxc6 {[%clk 0:01:27]}  bxc6 {[%clk 0:01:18]} 26. Bc1 {[%clk 0:01:26]}  Bf6 {[%clk 0:01:08]} 27. Be3 {[%clk 0:01:07]}  h5 {[%clk 0:00:59]} 28. h4 {[%clk 0:01:04]}  gxh3 {[%clk 0:00:52]} 29. Bxh3 {[%clk 0:01:04]}  h4 {[%clk 0:00:52]} 30. Ne4 {[%clk 0:00:59]}  fxe4 {[%clk 0:00:42]} 31. Bxe6 {[%clk 0:01:00]}  hxg3 {[%clk 0:00:42]} 32. fxg3 {[%clk 0:00:58]}  exd3 {[%clk 0:00:32]} 33. Qxd3+ {[%clk 0:00:55]}  Kg7 {[%clk 0:00:32]} 34. Qe4 {[%clk 0:00:48]}  Rh8 {[%clk 0:00:27]} 35. Qg4+ {[%clk 0:00:48]}  Kf8 {[%clk 0:00:28]} 36. Rf1 {[%clk 0:00:47]} 1-0


[Site "https://www.chess.com"]

[Event "Titled Tuesday Blitz October 04 Late 2022"]
[White "Bykov, Egor"]
[Black "Zhigalko, Sergei"]
[WhiteFideId "34115290"]
[BlackFideId "13502956"]
[WhiteElo "2327"]
[BlackElo "2662"]
[Result "0-1"]
[Round "03"]
[TimeControl "180+1"]
[Date "2022.10.04"]
[WhiteClock "0:00:01"]
[BlackClock "0:00:07"]

1. e4 {[%clk 0:02:52]}  c5 {[%clk 0:03:00]} 2. Nf3 {[%clk 0:02:51]}  Nc6 {[%clk 0:03:00]} 3. d4 {[%clk 0:02:51]}  cxd4 {[%clk 0:03:01]} 4. Nxd4 {[%clk 0:02:52]}  Nf6 {[%clk 0:03:02]} 5. Nc3 {[%clk 0:02:52]}  e5 {[%clk 0:03:03]} 6. Ndb5 {[%clk 0:02:51]}  d6 {[%clk 0:03:03]} 7. Bg5 {[%clk 0:02:45]}  a6 {[%clk 0:03:03]} 8. Na3 {[%clk 0:02:44]}  b5 {[%clk 0:03:03]} 9. Bxf6 {[%clk 0:02:43]}  gxf6 {[%clk 0:03:03]} 10. Nd5 {[%clk 0:02:43]}  Bg7 {[%clk 0:03:02]} 11. c3 {[%clk 0:02:36]}  f5 {[%clk 0:03:02]} 12. Bd3 {[%clk 0:02:32]}  Be6 {[%clk 0:03:00]} 13. Nc2 {[%clk 0:02:20]}  Bxd5 {[%clk 0:02:54]} 14. exd5 {[%clk 0:02:21]}  Ne7 {[%clk 0:02:55]} 15. Nb4 {[%clk 0:02:06]}  O-O {[%clk 0:02:49]} 16. O-O {[%clk 0:01:51]}  e4 {[%clk 0:02:49]} 17. Bc2 {[%clk 0:01:45]}  a5 {[%clk 0:02:22]} 18. Nc6 {[%clk 0:01:44]}  Nxc6 {[%clk 0:01:54]} 19. dxc6 {[%clk 0:01:45]}  Re8 {[%clk 0:01:54]} 20. Bb3 {[%clk 0:01:21]}  Re5 {[%clk 0:01:49]} 21. Bd5 {[%clk 0:01:08]}  Qb6 {[%clk 0:01:25]} 22. b3 {[%clk 0:00:53]}  Qc5 {[%clk 0:00:29]} 23. c4 {[%clk 0:00:46]}  e3 {[%clk 0:00:30]} 24. Qf3 {[%clk 0:00:22]}  exf2+ {[%clk 0:00:28]} 25. Kh1 {[%clk 0:00:19]}  Rxd5 {[%clk 0:00:26]} 26. cxd5 {[%clk 0:00:09]}  Bxa1 {[%clk 0:00:26]} 27. Rxa1 {[%clk 0:00:09]}  Re8 {[%clk 0:00:26]} 28. Rf1 {[%clk 0:00:04]}  Re5 {[%clk 0:00:19]} 29. g4 {[%clk 0:00:03]}  Rxd5 {[%clk 0:00:15]} 30. Rxf2 {[%clk 0:00:01]}  Qxc6 {[%clk 0:00:13]} 31. Kg2 {[%clk 0:00:01]}  Kf8 {[%clk 0:00:07]} 0-1


[Site "https://www.chess.com"]

[Event "Titled Tuesday Blitz October 04 Late 2022"]
[White "Fawzy, Adham"]
[Black "Postnikov, Daniil"]
[WhiteFideId "10613129"]
[BlackFideId "4166329"]
[WhiteElo "2541"]
[BlackElo "2261"]
[Result "0-1"]
[Round "03"]
[TimeControl "180+1"]
[Date "2022.10.04"]
[WhiteClock "0:00:01"]
[BlackClock "0:00:15"]

1. e4 {[%clk 0:03:00]}  e6 {[%clk 0:02:57]} 2. d4 {[%clk 0:03:00]}  d5 {[%clk 0:02:53]} 3. Nc3 {[%clk 0:03:01]}  Nf6 {[%clk 0:02:49]} 4. exd5 {[%clk 0:02:57]}  exd5 {[%clk 0:02:47]} 5. Bd3 {[%clk 0:02:58]}  c5 {[%clk 0:02:42]} 6. Nf3 {[%clk 0:02:58]}  Be7 {[%clk 0:02:40]} 7. dxc5 {[%clk 0:02:57]}  Bxc5 {[%clk 0:02:41]} 8. O-O {[%clk 0:02:56]}  O-O {[%clk 0:02:41]} 9. Bg5 {[%clk 0:02:57]}  Be6 {[%clk 0:02:37]} 10. Qd2 {[%clk 0:02:54]}  h6 {[%clk 0:02:22]} 11. Be3 {[%clk 0:02:09]}  Bxe3 {[%clk 0:02:16]} 12. Qxe3 {[%clk 0:02:10]}  Nc6 {[%clk 0:02:15]} 13. Nb5 {[%clk 0:02:04]}  Bg4 {[%clk 0:02:08]} 14. Nbd4 {[%clk 0:01:48]}  Qd6 {[%clk 0:02:01]} 15. c3 {[%clk 0:01:43]}  Rfe8 {[%clk 0:01:59]} 16. Qd2 {[%clk 0:01:42]}  Ne4 {[%clk 0:01:56]} 17. Qc2 {[%clk 0:01:37]}  Rac8 {[%clk 0:01:46]} 18. Qa4 {[%clk 0:01:37]}  Nc5 {[%clk 0:01:32]} 19. Qa3 {[%clk 0:01:31]}  Nxd4 {[%clk 0:01:00]} 20. Nxd4 {[%clk 0:00:54]}  Qf6 {[%clk 0:00:57]} 21. Bc2 {[%clk 0:00:52]}  Bd7 {[%clk 0:00:52]} 22. Rfe1 {[%clk 0:00:50]}  Ne4 {[%clk 0:00:51]} 23. Bxe4 {[%clk 0:00:49]}  dxe4 {[%clk 0:00:52]} 24. Qxa7 {[%clk 0:00:49]}  Qg5 {[%clk 0:00:32]} 25. g3 {[%clk 0:00:20]}  Qd5 {[%clk 0:00:29]} 26. Qb6 {[%clk 0:00:13]}  e3 {[%clk 0:00:22]} 27. Rxe3 {[%clk 0:00:11]}  Rxe3 {[%clk 0:00:21]} 28. fxe3 {[%clk 0:00:12]}  Bh3 {[%clk 0:00:22]} 29. Kf2 {[%clk 0:00:02]}  Qg2+ {[%clk 0:00:20]} 30. Ke1 {[%clk 0:00:03]}  Qf1+ {[%clk 0:00:19]} 31. Kd2 {[%clk 0:00:03]}  Qxa1 {[%clk 0:00:20]} 32. Qxb7 {[%clk 0:00:04]}  Qxa2 {[%clk 0:00:19]} 33. Ke2 {[%clk 0:00:02]}  Qb1 {[%clk 0:00:16]} 34. Kf2 {[%clk 0:00:01]}  Qf1# {[%clk 0:00:15]} 0-1


[Site "https://www.chess.com"]

[Event "Titled Tuesday Blitz October 04 Late 2022"]
[White "Girel, Joseph"]
[Black "Rasulov, Vugar"]
[WhiteFideId "36033561"]
[BlackFideId "13402390"]
[WhiteElo "2281"]
[BlackElo "2509"]
[Result "0-1"]
[Round "03"]
[TimeControl "180+1"]
[Date "2022.10.04"]
[WhiteClock "0:00:08"]
[BlackClock "0:00:24"]

1. d4 {[%clk 0:03:00]}  Nf6 {[%clk 0:02:58]} 2. c4 {[%clk 0:02:59]}  e6 {[%clk 0:02:57]} 3. Nf3 {[%clk 0:02:59]}  d5 {[%clk 0:02:57]} 4. Nc3 {[%clk 0:02:59]}  h6 {[%clk 0:02:56]} 5. Bf4 {[%clk 0:02:56]}  Bd6 {[%clk 0:02:55]} 6. Bxd6 {[%clk 0:02:55]}  Qxd6 {[%clk 0:02:54]} 7. e3 {[%clk 0:02:55]}  O-O {[%clk 0:02:53]} 8. c5 {[%clk 0:02:55]}  Qe7 {[%clk 0:02:53]} 9. Be2 {[%clk 0:02:55]}  Nbd7 {[%clk 0:02:49]} 10. O-O {[%clk 0:02:54]}  c6 {[%clk 0:02:47]} 11. b4 {[%clk 0:02:54]}  e5 {[%clk 0:02:42]} 12. a4 {[%clk 0:02:53]}  Re8 {[%clk 0:02:36]} 13. Qb3 {[%clk 0:02:43]}  exd4 {[%clk 0:02:28]} 14. exd4 {[%clk 0:02:42]}  Ne4 {[%clk 0:02:27]} 15. Rfe1 {[%clk 0:02:41]}  Ndf6 {[%clk 0:02:25]} 16. Ne5 {[%clk 0:02:39]}  a5 {[%clk 0:02:13]} 17. Nxe4 {[%clk 0:02:15]}  Nxe4 {[%clk 0:02:12]} 18. Bd3 {[%clk 0:02:05]}  axb4 {[%clk 0:02:10]} 19. Qxb4 {[%clk 0:02:05]}  Be6 {[%clk 0:01:57]} 20. Bxe4 {[%clk 0:02:00]}  dxe4 {[%clk 0:01:58]} 21. Rxe4 {[%clk 0:01:59]}  Red8 {[%clk 0:01:51]} 22. h3 {[%clk 0:01:49]}  Qg5 {[%clk 0:01:47]} 23. Nf3 {[%clk 0:01:44]}  Qf6 {[%clk 0:01:47]} 24. Qxb7 {[%clk 0:01:27]}  Bxh3 {[%clk 0:01:42]} 25. Qe7 {[%clk 0:01:13]}  Qxe7 {[%clk 0:01:24]} 26. Rxe7 {[%clk 0:01:14]}  Be6 {[%clk 0:01:24]} 27. a5 {[%clk 0:01:12]}  Ra6 {[%clk 0:01:21]} 28. Rc7 {[%clk 0:01:02]}  Bd5 {[%clk 0:01:04]} 29. Ne5 {[%clk 0:01:01]}  Rda8 {[%clk 0:01:01]} 30. f3 {[%clk 0:00:56]}  g5 {[%clk 0:00:45]} 31. Re1 {[%clk 0:00:47]}  Kg7 {[%clk 0:00:41]} 32. Ng4 {[%clk 0:00:34]}  Rxa5 {[%clk 0:00:39]} 33. Ne3 {[%clk 0:00:34]}  Ra1 {[%clk 0:00:31]} 34. Rxa1 {[%clk 0:00:26]}  Rxa1+ {[%clk 0:00:32]} 35. Kf2 {[%clk 0:00:27]}  Ra2+ {[%clk 0:00:32]} 36. Kg3 {[%clk 0:00:26]}  Ra4 {[%clk 0:00:32]} 37. Rd7 {[%clk 0:00:25]}  Be6 {[%clk 0:00:27]} 38. Rd6 {[%clk 0:00:25]}  h5 {[%clk 0:00:27]} 39. f4 {[%clk 0:00:24]}  Ra3 {[%clk 0:00:25]} 40. Kf2 {[%clk 0:00:19]}  gxf4 {[%clk 0:00:25]} 41. Nf1 {[%clk 0:00:15]}  Bd5 {[%clk 0:00:24]} 42. g3 {[%clk 0:00:12]}  Ra2+ {[%clk 0:00:24]} 43. Ke1 {[%clk 0:00:09]}  f3 {[%clk 0:00:25]} 44. Ne3 {[%clk 0:00:08]}  Re2+ {[%clk 0:00:24]} 0-1


[Site "https://www.chess.com"]

[Event "Titled Tuesday Blitz October 04 Late 2022"]
[White "Leiva, Gianmarco"]
[Black "Bortnyk, Olexandr"]
[WhiteFideId "3804399"]
[BlackFideId "14120828"]
[WhiteElo "2285"]
[BlackElo "2723"]
[Result "0-1"]
[Round "03"]
[TimeControl "180+1"]
[Date "2022.10.04"]
[WhiteClock "0:00:01"]
[BlackClock "0:00:54"]

1. d4 {[%clk 0:03:00]}  d6 {[%clk 0:03:00]} 2. Nf3 {[%clk 0:02:59]}  Nf6 {[%clk 0:02:57]} 3. Bf4 {[%clk 0:02:54]}  b6 {[%clk 0:02:56]} 4. h3 {[%clk 0:02:53]}  Bb7 {[%clk 0:02:56]} 5. Nbd2 {[%clk 0:02:52]}  Nbd7 {[%clk 0:02:56]} 6. e3 {[%clk 0:02:52]}  e6 {[%clk 0:02:56]} 7. a4 {[%clk 0:02:52]}  a6 {[%clk 0:02:56]} 8. Be2 {[%clk 0:02:47]}  Be7 {[%clk 0:02:57]} 9. O-O {[%clk 0:02:46]}  h6 {[%clk 0:02:57]} 10. Bh2 {[%clk 0:02:40]}  g5 {[%clk 0:02:57]} 11. Ne1 {[%clk 0:02:38]}  h5 {[%clk 0:02:55]} 12. Bf3 {[%clk 0:02:15]}  d5 {[%clk 0:02:55]} 13. g4 {[%clk 0:01:59]}  hxg4 {[%clk 0:02:54]} 14. hxg4 {[%clk 0:01:59]}  Bd6 {[%clk 0:02:16]} 15. Bxd6 {[%clk 0:01:55]}  cxd6 {[%clk 0:02:17]} 16. Kg2 {[%clk 0:01:41]}  Nf8 {[%clk 0:02:13]} 17. Nd3 {[%clk 0:01:23]}  Ng6 {[%clk 0:02:12]} 18. Rh1 {[%clk 0:01:21]}  Nh4+ {[%clk 0:02:10]} 19. Kf1 {[%clk 0:01:20]}  Ne4 {[%clk 0:02:08]} 20. Bxe4 {[%clk 0:01:10]}  dxe4 {[%clk 0:02:09]} 21. Ne1 {[%clk 0:01:10]}  Kd7 {[%clk 0:01:58]} 22. c4 {[%clk 0:01:10]}  Nf3 {[%clk 0:01:55]} 23. Rxh8 {[%clk 0:00:27]}  Qxh8 {[%clk 0:01:56]} 24. Nexf3 {[%clk 0:00:24]}  exf3 {[%clk 0:01:55]} 25. Ke1 {[%clk 0:00:24]}  Qh3 {[%clk 0:01:47]} 26. Nf1 {[%clk 0:00:22]}  Qxg4 {[%clk 0:01:47]} 27. Ng3 {[%clk 0:00:20]}  Rh8 {[%clk 0:01:42]} 28. Kd2 {[%clk 0:00:19]}  Rh2 {[%clk 0:01:41]} 29. Nh1 {[%clk 0:00:08]}  Qg2 {[%clk 0:01:28]} 30. Qb3 {[%clk 0:00:04]}  Rxh1 {[%clk 0:01:23]} 31. Rxh1 {[%clk 0:00:03]}  Qxh1 {[%clk 0:01:21]} 32. Qxb6 {[%clk 0:00:04]}  Be4 {[%clk 0:01:08]} 33. d5 {[%clk 0:00:02]}  Qb1 {[%clk 0:00:53]} 34. Qc6+ {[%clk 0:00:01]}  Ke7 {[%clk 0:00:54]} 0-1


[Site "https://www.chess.com"]